bitfinex-derivatives/quotes_BTCF0:USTF0_20250416
["timestamp","ask_amount","ask_price","bid_price","bid_amount"]
[1744767396424,0.119859,83438.0,83436.0,0.1198613]
[1744767396622,0.1198604,83437.0,83436.0,0.1198613]
[1744767396823,0.0599316,83436.0,83427.0,0.000108]
[1744767397025,0.1198719,83429.0,83427.0,0.000108]
[1744767397228,0.1511676,83435.0,83434.0,0.1198648]
[1744767397429,0.1797994,83435.0,83434.0,0.1198648]
[1744767397734,0.0599333,83433.0,83429.0,0.1245354]
[1744767397940,0.1198705,83431.0,83430.0,0.1198694]
[1744767398325,0.1198719,83429.0,83428.0,0.30370786]
[1744767398723,0.1198719,83429.0,83428.0,0.42350126]
[1744767399029,0.1198719,83429.0,83428.0,0.42358126]
[1744767400027,0.1198719,83429.0,83428.0,0.42350126]
[1744767400734,0.1198719,83429.0,83428.0,0.42650126]
[1744767401442,0.1198719,83429.0,83428.0,0.1228734]
[1744767402432,0.0915352,83431.0,83430.0,0.1198705]
[1744767402735,0.1198691,83431.0,83430.0,0.1198705]
[1744767403234,0.1198691,83431.0,83430.0,0.1824705]
[1744767403635,0.1198719,83429.0,83428.0,0.003]
[1744767403839,0.1198748,83427.0,83426.0,0.1198749]
[1744767404536,0.1198762,83426.0,83425.0,0.0318]
[1744767404742,0.1856762,83426.0,83425.0,0.1516777]
[1744767406534,0.1856762,83426.0,83425.0,0.1556777]
[1744767406923,0.0325,83426.0,83425.0,0.1556777]
[1744767407123,0.1523762,83426.0,83425.0,0.0358]
[1744767407331,0.1840762,83426.0,83425.0,0.004]
[1744767407635,0.1840762,83426.0,83425.0,0.00408]
[1744767407831,0.1840762,83426.0,83425.0,0.1239577]
[1744767408036,0.1840762,83426.0,83425.0,0.00408]
[1744767409624,0.1840762,83426.0,83425.0,0.004]
[1744767409827,0.1840762,83426.0,83425.0,0.00408]
[1744767410139,0.1198834,83421.0,83420.0,0.00017977]
[1744767410441,0.4806834,83421.0,83420.0,0.00017977]
[1744767410737,0.5432834,83421.0,83420.0,0.00017977]
[1744767412137,0.5432834,83421.0,83420.0,0.00117977]
[1744767413139,0.5432834,83421.0,83420.0,0.00517977]
[1744767413941,0.5432834,83421.0,83420.0,0.18786467]
[1744767414642,0.3911,83421.0,83420.0,0.18786467]
[1744767414834,0.4806834,83421.0,83420.0,0.18786467]
[1744767417344,0.4806834,83421.0,83420.0,0.06797977]
[1744767417546,0.4806834,83421.0,83420.0,0.03797977]
[1744767417743,0.5451834,83421.0,83420.0,0.03797977]
[1744767418246,0.5126834,83421.0,83420.0,0.15794467]
[1744767418443,0.5126834,83421.0,83420.0,0.19014467]
[1744767421438,0.5126834,83421.0,83420.0,0.03805977]
[1744767421643,0.5126834,83421.0,83420.0,0.15786467]
[1744767421644,0.5442834,83421.0,83420.0,0.15786467]
[1744767421837,0.5442834,83421.0,83420.0,0.15794467]
[1744767423444,0.5442834,83421.0,83420.0,0.12514467]
[1744767423640,0.5442834,83421.0,83420.0,0.12506467]
[1744767423840,0.5442834,83421.0,83420.0,0.12514467]
[1744767424035,0.5442834,83421.0,83420.0,0.15604467]
[1744767425546,0.5442834,83421.0,83420.0,0.00525977]
[1744767425743,0.1198935,83414.0,83413.0,1e-08]
[1744767426040,0.4806935,83414.0,83413.0,1e-08]
[1744767426244,0.1199007,83409.0,83408.0,0.1798491]
[1744767426438,0.1199007,83409.0,83408.0,0.0599505]
[1744767426743,0.1199007,83409.0,83403.0,0.0001458]
[1744767426744,0.1199079,83404.0,83403.0,0.0001458]
[1744767426934,0.1199122,83401.0,83400.0,0.2199132]
[1744767427342,0.1842122,83401.0,83400.0,0.2199932]
[1744767427544,0.2676122,83401.0,83400.0,0.2199932]
[1744767428335,0.2676122,83401.0,83400.0,0.2209932]
[1744767428938,0.2676122,83401.0,83400.0,0.10108]
[1744767429846,0.2676122,83401.0,83400.0,0.10308]
[1744767431850,0.1199222,83394.0,83393.0,0.00515628]
[1744767432447,0.1199222,83394.0,83393.0,0.00523628]
[1744767432654,0.1811222,83394.0,83393.0,0.00523628]
[1744767432850,0.1811222,83394.0,83393.0,0.01023628]
[1744767433744,0.19160993,83394.0,83393.0,0.01215628]
[1744767433940,0.19160993,83394.0,83393.0,0.00715628]
[1744767434140,0.19160993,83394.0,83393.0,0.00815628]
[1744767434349,0.19160993,83394.0,83393.0,0.00623628]
[1744767434750,0.1811222,83394.0,83393.0,0.12615998]
[1744767434938,0.2645622,83394.0,83393.0,0.12615998]
[1744767435144,0.2749683,83394.0,83393.0,0.00623628]
[1744767436152,0.6357683,83394.0,83393.0,0.00623628]
[1744767437252,0.6357683,83394.0,83393.0,0.03763628]
[1744767438540,0.6357683,83394.0,83393.0,0.00623628]
[1744767439151,0.6357683,83394.0,83393.0,0.00615628]
[1744767439352,0.6357683,83394.0,83393.0,0.00623628]
[1744767439647,0.5158061,83394.0,83374.0,0.00904946]
[1744767439848,0.1199496,83375.0,83374.0,0.21178135]
[1744767440146,0.4807461,83380.0,83379.0,0.1199438]
[1744767440852,0.5139461,83380.0,83379.0,0.1199438]
[1744767441754,0.5139461,83380.0,83379.0,0.1839438]
[1744767442649,0.5139461,83380.0,83379.0,0.1869438]
[1744767443158,0.5471461,83380.0,83379.0,0.1869438]
[1744767447851,0.5471461,83380.0,83379.0,0.1239438]
[1744767448052,0.5471461,83380.0,83379.0,0.004]
[1744767448450,0.5471461,83380.0,83379.0,0.00408]
[1744767449152,0.5471461,83380.0,83379.0,0.00108]
[1744767449353,0.5481461,83380.0,83379.0,0.00108]
[1744767449561,0.5501461,83380.0,83379.0,8e-05]
[1744767455364,0.5501461,83380.0,83379.0,0.1200238]
[1744767455567,0.4207666,83387.0,83386.0,0.1199338]
[1744767455568,0.3608,83387.0,83386.0,0.1199338]
[1744767455759,0.1199323,83387.0,83386.0,0.1199338]
[1744767456064,0.1199323,83387.0,83386.0,0.1828338]
[1744767456260,0.00017988,83392.0,83391.0,0.1199266]
[1744767456564,0.12010498,83392.0,83391.0,0.2154266]
[1744767457354,0.12110498,83392.0,83391.0,0.2154266]
[1744767457555,0.12310498,83392.0,83391.0,0.2154266]
[1744767458964,0.15150498,83392.0,83391.0,0.2154266]
[1744767459266,0.15250498,83392.0,83391.0,0.2154266]
[1744767459966,0.18270498,83392.0,83391.0,0.2154266]
[1744767460666,0.15250498,83392.0,83391.0,0.2154266]
[1744767460870,0.12210498,83392.0,83391.0,0.2154266]
[1744767461880,0.00217988,83392.0,83391.0,0.2154266]
[1744767462558,0.12210498,83392.0,83391.0,0.1527266]
[1744767462764,0.12210498,83392.0,83391.0,0.1528066]
[1744767462965,0.18390498,83392.0,83391.0,0.1528066]
[1744767464570,0.18206808,83392.0,83379.0,8e-05]
[1744767464761,0.00217988,83392.0,83391.0,0.1832266]
[1744767464960,0.00217988,83392.0,83391.0,0.1833066]
[1744767465468,0.12210498,83392.0,83391.0,0.1833066]
[1744767465870,0.18580498,83392.0,83391.0,0.1833066]
[1744767466066,0.18480498,83392.0,83391.0,0.1833066]
[1744767466265,0.18580498,83392.0,83391.0,0.1833066]
[1744767466772,0.18480498,83392.0,83391.0,0.1833066]
[1744767467070,0.18680498,83392.0,83391.0,0.1833066]
[1744767468258,0.15620498,83392.0,83391.0,0.1833066]
[1744767468674,0.15620498,83392.0,83391.0,0.1518066]
[1744767468974,0.19050498,83392.0,83391.0,0.1518066]
[1744767469173,0.18850498,83392.0,83391.0,0.1199266]
[1744767469370,0.18950498,83392.0,83391.0,0.1200066]
[1744767469676,0.18950498,83392.0,83391.0,0.1199266]
[1744767469874,0.18950498,83392.0,83391.0,0.1200066]
[1744767470075,0.19050498,83392.0,83391.0,0.1200066]
[1744767470378,0.19150498,83392.0,83391.0,0.1200066]
[1744767470579,0.19250498,83392.0,83391.0,0.1200066]
[1744767471672,0.19250498,83392.0,83391.0,8e-05]
[1744767471970,0.19250498,83392.0,83380.0,0.0599709]
[1744767471971,0.1199352,83385.0,83380.0,0.0599709]
[1744767472176,0.1199453,83378.0,83377.0,0.2102185]
[1744767472569,0.1828453,83378.0,83377.0,0.2102185]
[1744767473090,0.193561,83378.0,83377.0,0.2102185]
[1744767473292,0.0599738,83377.0,83373.0,0.000108]
[1744767473494,0.1799258,83375.0,83374.0,0.1199502]
[1744767474393,0.2125258,83375.0,83374.0,0.1200302]
[1744767474795,0.2125258,83375.0,83374.0,0.1800056]
[1744767475290,0.2125258,83375.0,83374.0,0.0600554]
[1744767475494,0.2125258,83375.0,83374.0,8e-05]
[1744767475696,0.1199525,83373.0,83372.0,0.06876764]
[1744767476192,0.1199553,83371.0,83370.0,0.0303]
[1744767476403,0.1199568,83370.0,83369.0,0.000108]
[1744767476599,0.1799387,83369.0,83368.0,0.1199591]
[1744767476786,0.1799387,83369.0,83367.0,0.00515789]
[1744767476787,0.1199596,83368.0,83367.0,0.00515789]
[1744767476987,0.1825596,83368.0,83367.0,0.00515789]
[1744767477392,0.1825596,83368.0,83367.0,0.12511899]
[1744767478099,0.1825596,83368.0,83367.0,0.15781899]
[1744767478903,0.1825596,83368.0,83367.0,0.12511899]
[1744767479197,0.1825596,83368.0,83367.0,0.12811899]
[1744767479899,0.1825596,83368.0,83367.0,0.12911899]
[1744767480590,0.1825596,83368.0,83367.0,0.16031899]
[1744767483700,0.0834,83386.0,83367.0,0.07365789]
[1744767483902,0.0313,83376.0,83375.0,0.1199496]
[1744767484200,0.1512527,83376.0,83375.0,0.1525496]
[1744767484398,0.0599755,83374.0,83372.0,0.0599769]
[1744767484600,0.0634,83373.0,83372.0,0.1799294]
[1744767485099,0.059977,83372.0,83370.0,0.420777]
[1744767485305,0.2112323,83372.0,83371.0,0.1199553]
[1744767485494,0.1199553,83371.0,83370.0,0.4807568]
[1744767485992,0.1512553,83371.0,83370.0,0.4808368]
[1744767487997,0.0313,83371.0,83370.0,0.4808368]
[1744767488298,0.14470601,83390.0,83377.0,0.0599733]
[1744767488299,0.1199442,83379.0,83377.0,0.0599733]
[1744767488500,0.1199442,83379.0,83378.0,0.1199453]
[1744767488797,0.3608,83389.0,83388.0,0.1199309]
[1744767488994,0.09393352,83394.0,83388.0,0.1199309]
[1744767488995,0.0327,83391.0,83390.0,0.119928]
[1744767489188,0.1526266,83391.0,83390.0,0.119928]
[1744767489595,0.00017988,83392.0,83391.0,0.1199266]
[1744767489791,0.12010498,83392.0,83391.0,0.1199266]
[1744767491203,0.1799094,83388.0,83387.0,0.2398616]
[1744767492705,0.1819094,83388.0,83387.0,0.2398616]
[1744767493204,0.1839094,83388.0,83387.0,0.2398616]
[1744767494007,0.1819094,83388.0,83387.0,0.2398616]
[1744767494205,0.1839094,83388.0,83387.0,0.2398616]
[1744767494799,0.1819094,83388.0,83387.0,0.2398616]
[1744767495102,0.1839094,83388.0,83387.0,0.2398616]
[1744767495592,0.1839094,83388.0,83387.0,0.1199293]
[1744767496701,0.0639688,83388.0,83387.0,0.1199293]
[1744767496907,0.1239309,83388.0,83387.0,0.1199293]
[1744767497406,0.1239309,83388.0,83387.0,0.1531293]
[1744767497607,0.1239309,83388.0,83387.0,0.1532093]
[1744767497907,0.1219309,83388.0,83387.0,0.1532093]
[1744767498106,0.00017988,83392.0,83391.0,0.1199266]
[1744767498307,0.0613,83420.0,83419.0,0.1198863]
[1744767498494,0.0613,83420.0,83419.0,0.4906863]
[1744767498708,0.0613,83420.0,83419.0,0.1198863]
[1744767499101,0.0303,83420.0,83419.0,0.1198863]
[1744767499306,8e-05,83425.0,83421.0,0.1198834]
[1744767499603,0.00017988,83428.0,83421.0,0.1198834]
[1744767499907,0.124882,83422.0,83421.0,0.1198834]
[1744767500300,0.127882,83422.0,83421.0,0.1198834]
[1744767500497,0.1198863,83419.0,83418.0,0.1530871]
[1744767500698,0.1198863,83419.0,83418.0,0.1198871]
[1744767501006,0.0303,83421.0,83420.0,0.1198849]
[1744767501199,0.008,83422.0,83421.0,0.1198834]
[1744767501395,0.011,83422.0,83421.0,0.1198834]
[1744767501597,0.130882,83422.0,83421.0,0.1198834]
[1744767502000,0.127882,83422.0,83421.0,0.1198834]
[1744767502605,0.130882,83422.0,83421.0,0.1198834]
[1744767503599,0.130882,83422.0,83421.0,0.1199634]
[1744767503910,0.127882,83422.0,83421.0,0.1199634]
[1744767504104,0.191282,83422.0,83421.0,0.1199634]
[1744767504706,0.194282,83422.0,83421.0,0.1198834]
[1744767504904,0.194282,83422.0,83421.0,0.1199634]
[1744767505208,0.194282,83422.0,83421.0,8e-05]
[1744767505604,0.194282,83422.0,83421.0,0.1199634]
[1744767506103,0.194282,83422.0,83421.0,8e-05]
[1744767506302,0.226182,83422.0,83421.0,8e-05]
[1744767510709,0.1198906,83416.0,83415.0,0.000108]
[1744767510910,0.0599464,83415.0,83392.0,0.0599619]
[1744767511112,0.1199237,83393.0,83392.0,0.0993578]
[1744767511709,0.13077561,83393.0,83392.0,0.0993578]
[1744767511904,0.13077561,83393.0,83388.0,0.0317]
[1744767511905,0.01085191,83393.0,83388.0,0.0317]
[1744767512107,0.1199294,83389.0,83388.0,0.1199305]
[1744767512616,0.1812294,83389.0,83388.0,0.1199305]
[1744767512809,0.1812294,83389.0,83388.0,0.1200105]
[1744767513205,0.1812294,83389.0,83388.0,8e-05]
[1744767513713,0.179915,83381.0,83380.0,0.059971]
[1744767514313,0.242415,83381.0,83380.0,0.059971]
[1744767514717,0.3023862,83381.0,83380.0,0.1799134]
[1744767515409,0.3023862,83381.0,83380.0,0.1849134]
[1744767515805,0.3023862,83381.0,83380.0,0.1869134]
[1744767518215,0.3023862,83381.0,83380.0,0.066971]
[1744767518417,0.6631862,83381.0,83380.0,0.007]
[1744767520318,0.3023862,83381.0,83380.0,0.007]
[1744767521218,0.3023862,83381.0,83380.0,0.1269424]
[1744767521723,0.3023862,83381.0,83380.0,0.1599424]
[1744767524809,0.0913712,83381.0,83380.0,0.1599424]
[1744767525014,0.0913712,83381.0,83380.0,0.1921424]
[1744767526221,0.1218712,83381.0,83380.0,0.1921424]
[1744767526620,0.1218712,83381.0,83380.0,0.1599424]
[1744767527319,0.1218712,83381.0,83380.0,0.1909424]
[1744767529718,0.08336,83386.0,83385.0,0.1199352]
[1744767529919,0.2032938,83386.0,83385.0,0.1199352]
[1744767530116,0.08336,83404.0,83396.0,0.1199194]
[1744767530424,0.12009208,83401.0,83400.0,0.1199136]
[1744767530632,0.00017988,83401.0,83400.0,0.4807136]
[1744767530818,0.00017988,83401.0,83400.0,0.5117136]
[1744767531122,0.00017988,83401.0,83400.0,0.5436136]
[1744767531517,0.00017988,83401.0,83400.0,0.7936136]
[1744767531715,0.00017988,83401.0,83400.0,0.5436136]
[1744767532017,0.00117988,83401.0,83400.0,0.5436136]
[1744767532920,0.00017988,83401.0,83400.0,0.5436136]
[1744767533122,0.00017988,83401.0,83400.0,0.5466136]
[1744767534120,0.0301,83411.0,83400.0,0.5466136]
[1744767534121,0.08332,83419.0,83418.0,0.1198877]
[1744767534323,0.0301,83425.0,83420.0,0.1198849]
[1744767534528,0.00010801,83424.0,83420.0,0.4806849]
[1744767534727,0.005,83422.0,83420.0,0.4806849]
[1744767534925,0.00296512,83421.0,83420.0,0.4806849]
[1744767535230,0.00296512,83421.0,83420.0,0.5456849]
[1744767535730,0.00596512,83421.0,83420.0,0.5456849]
[1744767535930,0.12584852,83421.0,83420.0,0.55460605]
[1744767536231,0.00596512,83421.0,83420.0,0.5456849]
[1744767536740,0.03876512,83421.0,83420.0,0.5456849]
[1744767536931,0.16064852,83421.0,83420.0,0.5456849]
[1744767537130,0.04076512,83421.0,83420.0,0.5456849]
[1744767537630,0.16064852,83421.0,83420.0,0.5456849]
[1744767537828,0.19334852,83421.0,83420.0,0.5456849]
[1744767538327,0.19334852,83421.0,83420.0,0.1848849]
[1744767538526,0.1198949,83413.0,83412.0,0.18001668]
[1744767538716,0.1198949,83413.0,83412.0,0.23996418]
[1744767538921,0.0309,83414.0,83413.0,0.1198949]
[1744767539120,0.1507935,83414.0,83413.0,0.1848949]
[1744767539321,0.0309,83414.0,83413.0,0.1848949]
[1744767539731,0.1507935,83414.0,83413.0,0.1848949]
[1744767541726,0.1834935,83414.0,83413.0,0.1198949]
[1744767542431,0.1844935,83414.0,83413.0,0.1199749]
[1744767542621,0.1854935,83414.0,83413.0,0.1199749]
[1744767542822,0.1198949,83413.0,83412.0,0.00017988]
[1744767543233,0.1829949,83413.0,83412.0,0.12007628]
[1744767543539,0.1829949,83413.0,83412.0,0.12015628]
[1744767543737,0.1829949,83413.0,83412.0,0.00025988]
[1744767543936,0.1829949,83413.0,83412.0,0.12015628]
[1744767544249,0.1859949,83413.0,83412.0,0.12007628]
[1744767544441,0.1859949,83413.0,83412.0,0.12015628]
[1744767545440,0.1889949,83413.0,83412.0,0.12015628]
[1744767547230,0.1859949,83413.0,83412.0,0.12015628]
[1744767547437,0.1879949,83413.0,83412.0,0.12015628]
[1744767547830,0.1879949,83413.0,83412.0,0.00025988]
[1744767548738,0.1879949,83413.0,83412.0,0.12015628]
[1744767549038,0.1869949,83413.0,83412.0,0.12015628]
[1744767549232,0.1869949,83413.0,83412.0,0.00025988]
[1744767549427,0.1879949,83413.0,83412.0,0.00025988]
[1744767549625,0.1859949,83413.0,83412.0,0.00017988]
[1744767549827,0.1889949,83413.0,83412.0,0.00025988]
[1744767550030,0.1889949,83413.0,83412.0,0.12015628]
[1744767550438,0.1859949,83413.0,83412.0,0.12015628]
[1744767550736,0.1889949,83413.0,83412.0,0.00025988]
[1744767551127,0.1899949,83413.0,83412.0,0.00025988]
[1744767551937,0.1899949,83413.0,83412.0,0.12015628]
[1744767552238,0.1899949,83413.0,83412.0,0.00025988]
[1744767552439,0.1869949,83413.0,83412.0,0.00025988]
[1744767552643,0.1899949,83413.0,83412.0,0.00017988]
[1744767552834,0.1899949,83413.0,83412.0,0.00025988]
[1744767553355,0.1899949,83413.0,83412.0,0.12015628]
[1744767553556,0.0382,83413.0,83412.0,0.12015628]
[1744767553843,0.0382,83413.0,83412.0,0.18555628]
[1744767554045,0.007,83413.0,83412.0,0.21645628]
[1744767554250,0.12276922,83421.0,83412.0,0.21645628]
[1744767554251,0.00288512,83421.0,83420.0,0.1198849]
[1744767554543,0.00288512,83421.0,83420.0,0.1839849]
[1744767554935,0.00296512,83421.0,83420.0,0.1839849]
[1744767555140,0.00288512,83421.0,83420.0,0.1839849]
[1744767555340,0.03538512,83421.0,83420.0,0.1839849]
[1744767555648,0.03838512,83421.0,83420.0,0.1839849]
[1744767555842,0.07068512,83421.0,83420.0,0.1839849]
[1744767556044,0.07076512,83421.0,83420.0,0.1839849]
[1744767556346,0.19064852,83421.0,83420.0,0.1839849]
[1744767556547,0.19264852,83421.0,83420.0,0.1198849]
[1744767556750,0.22584852,83421.0,83420.0,0.1199649]
[1744767557048,0.22584852,83421.0,83420.0,8e-05]
[1744767557254,0.1798416,83415.0,83414.0,0.0599432]
[1744767557843,0.1798416,83415.0,83414.0,0.0600232]
[1744767558040,0.1198934,83415.0,83414.0,0.1799081]
[1744767558342,0.16590682,83421.0,83420.0,0.1198849]
[1744767558543,2e-08,83421.0,83420.0,0.1298849]
[1744767558756,0.005,83422.0,83421.0,0.1198834]
[1744767558947,0.005,83422.0,83421.0,0.1838834]
[1744767559264,0.005,83422.0,83421.0,0.1938834]
[1744767559642,0.005,83422.0,83421.0,0.1939634]
[1744767559950,0.00508,83422.0,83421.0,0.1939634]
[1744767560745,0.005,83422.0,83421.0,0.1939634]
[1744767560943,0.00508,83422.0,83421.0,0.1939634]
[1744767561344,0.00708,83422.0,83421.0,0.1939634]
[1744767561553,0.00908,83422.0,83421.0,0.1939634]
[1744767564157,0.00908,83422.0,83421.0,0.1938834]
[1744767564360,0.00908,83422.0,83421.0,0.1939634]
[1744767565844,0.009,83422.0,83421.0,0.1939634]
[1744767566044,0.128962,83422.0,83421.0,0.1838834]
[1744767566244,0.00908,83422.0,83421.0,0.1839634]
[1744767566648,0.00908,83422.0,83421.0,0.1838834]
[1744767566849,0.00908,83422.0,83421.0,0.1839634]
[1744767567157,0.009,83422.0,83421.0,0.1839634]
[1744767567358,0.00908,83422.0,83421.0,0.1839634]
[1744767570052,0.00908,83422.0,83421.0,0.1838834]
[1744767570254,0.00908,83422.0,83421.0,0.1938834]
[1744767570556,0.009,83422.0,83421.0,0.1938834]
[1744767570961,0.00908,83422.0,83421.0,0.1938834]
[1744767571660,0.00908,83422.0,83421.0,1.2438834]
[1744767575054,0.009,83422.0,83421.0,1.2438834]
[1744767576064,0.00908,83422.0,83421.0,1.2438834]
[1744767578666,0.00916,83422.0,83421.0,1.2438834]
[1744767579262,0.00916,83422.0,83421.0,0.1938834]
[1744767579569,0.00916,83422.0,83421.0,0.2038834]
[1744767579964,0.00908,83422.0,83421.0,0.2038834]
[1744767580267,0.00908,83422.0,83421.0,0.21503187]
[1744767580967,0.00916,83422.0,83421.0,0.21503187]
[1744767584760,0.063,83428.0,83427.0,0.1198748]
[1744767584960,0.00014581,83436.0,83432.0,0.0599333]
[1744767585164,0.0649227,83448.0,83442.0,0.0599261]
[1744767585165,0.005,83448.0,83442.0,0.0599261]
[1744767585360,0.00010801,83445.0,83444.0,0.1797755]
[1744767585664,0.005,83448.0,83447.0,0.1198461]
[1744767586367,0.00508,83448.0,83447.0,0.1198461]
[1744767587670,0.00908,83448.0,83447.0,0.1198461]
[1744767591263,0.00908,83448.0,83447.0,0.1298461]
[1744767591466,0.00408,83448.0,83447.0,0.1298461]
[1744767591672,0.0311,83455.0,83454.0,0.119836]
[1744767591875,0.0311,83455.0,83454.0,0.480636]
[1744767592373,0.1509346,83455.0,83454.0,0.119836]
[1744767592573,0.0311,83455.0,83452.0,0.1198387]
[1744767592774,0.1198432,83450.0,83449.0,0.0599214]
[1744767593368,0.1797641,83450.0,83449.0,0.0599214]
[1744767593671,0.1198446,83448.0,83443.0,0.0599258]
[1744767593872,0.1198446,83448.0,83447.0,0.4806461]
[1744767594062,0.1519446,83448.0,83447.0,0.4806461]
[1744767594267,0.1519446,83448.0,83447.0,0.3608]
[1744767594465,0.1519446,83448.0,83447.0,0.4806461]
[1744767594869,0.1837446,83448.0,83447.0,0.4806461]
[1744767595069,0.4337446,83448.0,83447.0,0.4806461]
[1744767595976,0.4337446,83448.0,83447.0,0.1198461]
[1744767596373,0.1837446,83448.0,83447.0,0.1198461]
[1744767600281,0.0639,83448.0,83447.0,0.4806461]
[1744767600685,0.06398,83448.0,83447.0,0.5133461]
[1744767601178,0.06398,83448.0,83447.0,0.1198461]
[1744767601378,0.1838246,83448.0,83447.0,0.1198461]
[1744767601584,0.06398,83448.0,83447.0,0.1198461]
[1744767601783,0.0639,83448.0,83447.0,0.1198461]
[1744767601985,0.06398,83448.0,83447.0,0.1198461]
[1744767602181,8e-05,83448.0,83447.0,0.1198461]
[1744767602478,0.00014581,83460.0,83455.0,0.1198346]
[1744767602678,0.00017976,83456.0,83455.0,0.5133346]
[1744767603477,0.07493777,83469.0,83462.0,0.0599116]
[1744767603675,0.05706556,83469.0,83466.0,0.0599094]
[1744767603883,0.0318,83473.0,83472.0,0.1198102]
[1744767604082,0.0318,83473.0,83472.0,0.15955713]
[1744767604293,0.005,83474.0,83473.0,0.1198088]
[1744767604786,0.005,83474.0,83473.0,0.1826088]
[1744767604985,0.36812032,83475.0,83474.0,0.1198073]
[1744767605186,0.0318,83481.0,83480.0,0.1197987]
[1744767605385,0.0318,83481.0,83480.0,0.4805987]
[1744767606189,0.0318,83481.0,83480.0,0.5459987]
[1744767607376,0.00017976,83482.0,83481.0,0.1197973]
[1744767607783,0.00017976,83482.0,83481.0,0.1832973]
[1744767610098,0.00017976,83482.0,83481.0,0.1506973]
[1744767610391,0.11997556,83482.0,83481.0,0.1506973]
[1744767610990,0.18237556,83482.0,83481.0,0.1506973]
[1744767611192,0.1797017,83480.0,83479.0,0.1197989]
[1744767611800,0.1797017,83480.0,83479.0,0.1520989]
[1744767611993,0.1797017,83480.0,83479.0,0.0323]
[1744767612182,0.1198159,83470.0,83469.0,0.179719]
[1744767612382,0.1198159,83470.0,83469.0,0.06898632]
[1744767612590,0.1797275,83468.0,83467.0,0.1198169]
[1744767612800,0.0295,83469.0,83468.0,0.1198159]
[1744767613090,0.1493145,83469.0,83468.0,0.1521159]
[1744767613790,0.1817145,83469.0,83468.0,0.1521159]
[1744767616093,0.0306,83479.0,83478.0,0.1198016]
[1744767616285,0.0832,83486.0,83479.0,0.1198001]
[1744767616487,0.0832,83486.0,83481.0,0.1197973]
[1744767616690,0.0314,83489.0,83481.0,0.1197973]
[1744767616890,0.00025976,83482.0,83481.0,0.1815973]
[1744767617491,0.12005556,83482.0,83481.0,0.1501973]
[1744767617792,0.00025976,83482.0,83481.0,0.1501973]
[1744767618195,0.00017976,83482.0,83481.0,0.1815973]
[1744767618396,0.00025976,83482.0,83481.0,0.1815973]
[1744767618593,0.00017976,83482.0,83481.0,0.1815973]
[1744767618788,0.00025976,83482.0,83481.0,0.1815973]
[1744767621601,0.12005556,83482.0,83481.0,0.0304]
[1744767622001,0.0599007,83479.0,83465.0,0.12908497]
[1744767622194,0.0599053,83472.0,83471.0,0.0329]
[1744767622895,0.1198188,83466.0,83465.0,0.00017976]
[1744767623296,0.1806188,83466.0,83465.0,0.00017976]
[1744767623496,0.1806188,83466.0,83465.0,0.11999996]
[1744767623804,0.1806188,83466.0,83465.0,0.15219996]
[1744767625200,0.1806188,83466.0,83465.0,0.03237976]
[1744767625801,0.1806188,83466.0,83465.0,0.15219996]
[1744767627208,0.1806188,83466.0,83465.0,0.00017976]
[1744767627601,0.1198475,83446.0,83431.0,1.41259785]
[1744767627796,0.1198475,83446.0,83445.0,0.12500206]
[1744767628205,0.1513475,83446.0,83445.0,0.12500206]
[1744767628505,0.1513475,83446.0,83445.0,0.12508206]
[1744767629009,0.1513475,83446.0,83445.0,0.15728206]
[1744767629411,0.1513475,83446.0,83445.0,0.15828206]
[1744767629708,0.1808475,83446.0,83445.0,0.15828206]
[1744767629905,0.1808475,83446.0,83445.0,0.16719088]
[1744767630109,0.1808475,83446.0,83445.0,0.17019088]
[1744767630912,0.1808475,83446.0,83445.0,0.16919088]
[1744767631098,0.1808475,83446.0,83445.0,0.16619088]
[1744767631304,0.1513475,83446.0,83445.0,0.16619088]
[1744767633307,0.1198475,83446.0,83445.0,0.19879088]
[1744767633709,0.1518475,83446.0,83445.0,0.19879088]
[1744767636118,0.00028777,83454.0,83450.0,0.0599204]
[1744767636316,0.00028777,83454.0,83453.0,0.1198375]
[1744767636709,0.00017976,83454.0,83453.0,0.1819375]
[1744767636908,0.00025976,83454.0,83453.0,0.1819375]
[1744767637311,0.12009576,83454.0,83453.0,0.1819375]
[1744767638104,0.12009576,83454.0,83453.0,0.1829375]
[1744767638416,0.00025976,83454.0,83453.0,0.1829375]
[1744767638714,0.09181841,83465.0,83455.0,0.0599168]
[1744767638715,0.17984591,83465.0,83455.0,0.0599168]
[1744767639014,0.23975821,83465.0,83464.0,0.1198217]
[1744767639318,0.2396502,83465.0,83464.0,0.1198217]
[1744767639515,0.2396502,83465.0,83464.0,0.1834217]
[1744767640016,0.2397302,83465.0,83464.0,0.1834217]
[1744767640313,0.2702302,83465.0,83464.0,0.1834217]
[1744767644520,0.2702302,83465.0,83464.0,0.0636]
[1744767644712,0.2702302,83465.0,83464.0,0.0327]
[1744767644916,0.1198317,83457.0,83456.0,0.00017976]
[1744767645221,0.1198317,83457.0,83456.0,0.03037976]
[1744767645819,0.1526317,83457.0,83456.0,0.15021296]
[1744767646211,0.1198317,83457.0,83456.0,0.18231296]
[1744767646406,0.1199117,83457.0,83456.0,0.21501296]
[1744767646611,0.1198317,83457.0,83456.0,0.03037976]
[1744767646910,0.1527117,83457.0,83456.0,0.03037976]
[1744767647108,0.2138117,83457.0,83456.0,0.03037976]
[1744767647812,0.2138117,83457.0,83456.0,0.15021296]
[1744767648123,0.2137317,83457.0,83456.0,0.03037976]
[1744767648625,0.2138117,83457.0,83456.0,0.03037976]
[1744767650227,0.2137317,83457.0,83456.0,0.03037976]
[1744767650415,0.2138117,83457.0,83456.0,0.03037976]
[1744767651821,0.1199117,83457.0,83456.0,0.15021296]
[1744767652218,0.1198317,83457.0,83456.0,0.18211296]
[1744767652419,0.1199117,83457.0,83456.0,0.18211296]
[1744767653212,0.1198317,83457.0,83456.0,0.18211296]
[1744767653418,0.1199117,83457.0,83456.0,0.18211296]
[1744767655021,0.1198317,83457.0,83456.0,0.18211296]
[1744767660216,0.1198317,83457.0,83456.0,0.06227976]
[1744767660424,0.2114317,83457.0,83456.0,0.15021296]
[1744767660721,0.1503317,83457.0,83456.0,0.15021296]
[1744767661116,0.1798317,83457.0,83456.0,0.15021296]
[1744767661922,0.1503317,83457.0,83456.0,0.15021296]
[1744767662122,0.1503317,83457.0,83456.0,0.18151296]
[1744767662327,0.1198317,83457.0,83456.0,0.18151296]
[1744767662724,0.00010801,83463.0,83462.0,0.1198245]
[1744767662925,0.00019684,83468.0,83466.0,0.1198188]
[1744767663130,0.1198165,83468.0,83466.0,0.1198188]
[1744767663331,0.36088,83467.0,83466.0,0.1827188]
[1744767664726,0.4806974,83467.0,83466.0,0.1827188]
[1744767665336,0.1198974,83467.0,83466.0,0.1827188]
[1744767666339,0.1198974,83467.0,83466.0,0.1514188]
[1744767666632,0.1498974,83467.0,83466.0,0.1514188]
[1744767666837,8e-05,83467.0,83466.0,0.1830188]
[1744767667030,8e-05,83467.0,83466.0,0.5438188]